fUSD/lending_fUSD_20240203
["ID","MTS","AMOUNT","RATE_DAILY","PERIOD"]
[313200329,1706928643906,-500.0,0.00022597,2]
[313200330,1706928643916,-500.0,0.00022597,2]
[313200331,1706928643925,-552.83,0.00022597,2]
[313200332,1706928643935,-549.07,0.00022597,2]
[313200333,1706928643944,-677.18,0.00022597,2]
[313200334,1706928643953,-500.0,0.00022597,2]
[313200335,1706928643962,-500.99315448,0.00022597,2]
[313200336,1706928643972,-500.0,0.00022597,2]
[313200337,1706928643982,-500.0,0.00022597,2]
[313200338,1706928643991,-500.0,0.00022597,2]
[313200339,1706928644000,-562.7,0.00022597,2]
[313200340,1706928644010,-500.0,0.00022597,2]
[313200341,1706928644019,-500.0,0.00022597,2]
[313200342,1706928644029,-598.78,0.00022597,2]
[313200343,1706928644039,-500.0,0.00022597,2]
[313200344,1706928644049,-500.0,0.00022597,2]
[313200345,1706928644059,-925.68,0.00022597,2]
[313200346,1706928644069,-500.0,0.00022597,2]
[313200347,1706928644079,-307.37441296,0.00022597,2]
[313200350,1706928645798,-192.62558704,0.00022597,2]
[313200351,1706928645808,-109.89455998,0.00022597,2]
[313200352,1706928645821,-283.7162531,0.00022597,2]
[313200353,1706928645833,-152.66139539,0.00022597,2]
[313200354,1706928645842,-499.88,0.00022597,2]
[313200355,1706928645851,-500.0,0.00022597,2]
[313200356,1706928645861,-500.0,0.00022597,2]
[313200357,1706928645870,-500.0,0.00022597,2]
[313200358,1706928645881,-500.0,0.00022597,2]
[313200359,1706928645891,-500.0,0.00022597,2]
[313200360,1706928645900,-500.0,0.00022597,2]
[313200361,1706928645909,-500.0,0.00022597,2]
[313200362,1706928645918,-410.87755689,0.00022597,2]
[313200363,1706928645933,-89.12244311,0.00022597,2]
[313200364,1706928645942,-770.27291689,0.00022597,2]
[313200365,1706928645957,-289.75708311,0.00022597,2]
[313200366,1706928645967,-429.09139128,0.00022597,2]
[313200367,1706928645979,-587.2050527,0.00022597,2]
[313200368,1706928645991,-229.17355602,0.00022597,2]
[313200369,1706928646000,-429.6792657,0.00022597,2]
[313200370,1706928646021,-70.3207343,0.00022597,2]
[313200371,1706928646030,-209.89029858,0.00022597,2]
[313200372,1706928646043,-290.10970142,0.00022597,2]
[313200373,1706928646053,-189.85348493,0.00022597,2]
[313200374,1706928646064,-310.14651507,0.00022597,2]
[313200375,1706928646073,-177.30041355,0.00022597,2]
[313200376,1706928646082,-148.39593421,0.00022597,2]
[313200377,1706928646093,-351.60406579,0.00022597,2]
[313200378,1706928646102,-500.0,0.00022597,2]
[313200379,1706928646112,-500.0,0.00022597,2]
[313200380,1706928646121,-500.0,0.00022597,2]
[313200381,1706928646130,-500.0,0.00022597,2]
[313200382,1706928646139,-500.0,0.00022597,2]
[313200383,1706928646149,-500.0,0.00022597,2]
[313200384,1706928646158,-500.0,0.00022597,2]
[313200385,1706928646167,-526.72,0.00022597,2]
[313200386,1706928646176,-500.0,0.00022597,2]
[313200387,1706928646186,-500.0,0.00022597,2]
[313200388,1706928646316,-500.0,0.00022597,2]
[313200389,1706928646326,-527.09,0.00022597,2]
[313200390,1706928646336,-500.0,0.00022597,2]
[313200391,1706928646345,-500.0,0.00022597,2]
[313200392,1706928646354,-717.36,0.00022597,2]
[313200393,1706928646363,-500.0,0.00022597,2]
[313200394,1706928646372,-500.0,0.00022597,2]
[313200395,1706928646381,-178.44782646,0.00022597,2]
[313200396,1706928646393,-321.55217354,0.00022597,2]
[313200397,1706928646401,-500.0,0.00022597,2]
[313200398,1706928646410,-500.0,0.00022597,2]
[313200399,1706928646419,-500.0,0.00022597,2]
[313200400,1706928646429,-962.53,0.00022597,2]
[313200401,1706928646438,-188.33394349,0.00022597,2]
[313200402,1706928646449,-311.66605651,0.00022597,2]
[313200403,1706928646459,-145.90993701,0.00022597,2]
[313200404,1706928646470,-421.81006299,0.00022597,2]
[313200405,1706928646479,-500.0,0.00022597,2]
[313200406,1706928646489,-500.0,0.00022597,2]
[313200407,1706928646498,-500.0,0.00022597,2]
[313200408,1706928646507,-500.0,0.00022597,2]
[313200409,1706928646516,-500.0,0.00022597,2]
[313200410,1706928646525,-553.75,0.00022597,2]
[313200411,1706928646534,-550.7,0.00022597,2]
[313200412,1706928646545,-500.0,0.00022597,2]
[313200413,1706928646554,-500.0,0.00022597,2]
[313200414,1706928646563,-500.0,0.00022597,2]
[313200415,1706928646572,-500.0,0.00022597,2]
[313200416,1706928646583,-500.0,0.00022597,2]
[313200417,1706928646593,-500.0,0.00022597,2]
[313200418,1706928646602,-500.0,0.00022597,2]
[313200419,1706928646611,-500.0,0.00022597,2]
[313200420,1706928646622,-532.15,0.00022597,2]
[313200421,1706928646634,-238.44063796,0.00022597,2]
[313200422,1706928646644,-500.0,0.00022597,2]
[313200423,1706928646657,-500.0,0.00022597,2]
[313200424,1706928646666,-874.17,0.00022597,2]
[313200425,1706928646675,-1797.32,0.00022597,2]
[313200426,1706928646686,-525.09997932,0.00022597,2]
[313200427,1706928646696,-505.35989361,0.00022598,2]
[313200428,1706928646720,-1846.31345547,0.00022598,2]
[313200429,1706928646729,-160.41806,0.00022598,2]
[313200430,1706928646738,-3646.41727852,0.00022598,2]
[313200431,1706928646747,-157.1245162,0.00022598,2]
[313200432,1706928646756,-206.27272975,0.00022598,2]
[313200433,1706928646765,-1088.05510556,0.00022598,2]
[313200434,1706928646774,-517.75336451,0.00022598,2]
[313200435,1706928646783,-500.0,0.00022598,2]
[313200436,1706928646792,-575.14869405,0.00022598,2]
[313200437,1706928646801,-500.0,0.00022598,2]
[313200438,1706928646811,-500.0,0.00022598,2]
[313200439,1706928646820,-544.73316798,0.00022598,2]
[313200440,1706928646830,-1318.58565223,0.00022599,2]
[313200441,1706928646839,-172.97316459,0.00022599,2]
[313200442,1706928646848,-535.1308137,0.00022599,2]
[313200443,1706928646857,-513.08379233,0.00022599,2]
[313200444,1706928646866,-532.02796207,0.00022599,2]
[313200445,1706928646876,-500.0,0.00022599,2]
[313200446,1706928646885,-514.43490104,0.00022599,2]
[313200447,1706928646895,-500.0,0.00022599,2]
[313200448,1706928646904,-543.03044758,0.00022599,2]
[313200449,1706928646914,-533.05020046,0.00022599,2]
[313200450,1706928646923,-515.30154679,0.00022599,2]
[313200451,1706928646932,-382.49187623,0.00022599,2]
[313200452,1706928646944,-128.60776105,0.00022599,2]
[313200453,1706928646953,-210.37233224,0.00022599,2]
[313200454,1706928646962,-562.92299339,0.00022599,2]
[313200455,1706928646972,-411.95606329,0.00022599,2]
[313200456,1706928646985,-232.61299238,0.00022599,2]
[313200457,1706928646995,-199.79197053,0.00022599,2]
[313200458,1706928647004,-543.0145749,0.00022599,2]
[313200459,1706928647013,-512.65935766,0.00022599,2]
[313200460,1706928647023,-514.92919734,0.00022599,2]
[313200461,1706928647032,-534.75821541,0.00022599,2]
[313200462,1706928647041,-511.89189694,0.00022599,2]
[313200463,1706928647050,-500.0,0.00022599,2]
[313200464,1706928647060,-500.0,0.00022599,2]
[313200465,1706928647070,-518.75370443,0.00022599,2]
[313200466,1706928647079,-500.0,0.00022599,2]
[313200467,1706928647089,-502.1466401,0.00022599,2]
[313200468,1706928647098,-500.0,0.00022599,2]
[313200469,1706928647108,-512.62011828,0.00022599,2]
[313200470,1706928647117,-168.4270921,0.00022599,2]
[313200471,1706928647127,-510.69622025,0.00022599,2]
[313200472,1706928647137,-219.88575844,0.00022599,2]
[313200473,1706928647146,-507.31303733,0.00022599,2]
[313200474,1706928647155,-93.0067214,0.00022599,2]
[313200475,1706928647168,-414.84141977,0.00022599,2]
[313200476,1706928647177,-156.56142356,0.00022599,2]
[313200477,1706928647187,-390.97726589,0.00022599,2]
[313200478,1706928647196,-78.54947229,0.00022599,2]
[313200479,1706928661316,500.0,0.00021734,2]
[313200480,1706928666072,538.60128397,0.00022494,2]
[313200481,1706928668328,1000.0,0.000225,2]
[313200482,1706928676633,270.32,0.00021721,2]
[313200483,1706928683942,1744.4745,0.00022495,2]
[313200484,1706928692361,23900.0,0.00021721,2]
[313200485,1706928698270,244327.8264,0.00022496,2]
[313200486,1706928713298,629.0673,0.00022495,2]
[313200487,1706928719118,3200.29032374,0.00021693,2]
[313200488,1706928734600,2065.8166,0.00022494,2]
[313200489,1706928746893,1035.5263,0.00022494,2]
[313200490,1706928763959,168.71,0.000198,2]
[313200491,1706928764171,168.71,0.00022064,2]
[313200492,1706928786711,155.62834575,0.000225,2]
[313200493,1706928788396,10000.0,0.00021918,2]
[313200494,1706928791775,204.37139,0.00022197,2]
[313200495,1706928797622,157.3,0.00021865,2]
[313200496,1706928802269,10579.0341,0.00022496,2]
[313200497,1706928818716,531.12,0.00021687,2]
[313200498,1706928843809,316.1289,0.00022499,2]
[313200499,1706928845931,500.0,0.0002,2]
[313200500,1706928847337,200.0,0.00021679,2]
[313200501,1706928861118,643.95358617,0.0002169,2]
[313200502,1706928865792,150.0,0.000225,2]
[313200503,1706928905017,1532.0446,0.00022499,2]
[313200504,1706928917475,169.84,0.00022218,2]
[313200505,1706928940962,250.0,0.00021671,2]
[313200506,1706928945244,150.0,0.00022218,2]
[313200507,1706928968590,2000.0,0.00021682,2]
[313200508,1706928993569,172.08,0.00021682,2]
[313200509,1706929009061,250.0,0.00021918,2]
[313200510,1706929039434,166.28,0.00021663,2]
[313200511,1706929061021,1852.42,0.00021663,2]
[313200512,1706929084052,209.0,0.00022105,2]
[313200513,1706929147228,225.26,0.00021663,2]
[313200514,1706929184491,151.83,0.00019759,2]
[313200515,1706929184693,151.83,0.00022023,2]
[313200516,1706929212550,10000.0,0.00021918,2]
[313200517,1706929229428,575.1,0.00021679,2]
[313200518,1706929468256,197.85195545,0.00022495,2]
[313200519,1706929601022,167.32,0.00019719,2]
[313200520,1706929601217,167.32,0.00021983,2]
[313200521,1706929602344,187.71,0.00021637,2]
[313200522,1706929648041,539.92,0.0002163,2]
[313200523,1706929671632,10000.0,0.00021918,2]
[313200540,1706929831942,-155.62834575,0.00022501,2]
[313200542,1706929831951,-291.32161636,0.00022505,2]
[313200543,1706929831961,-800.0,0.00022506,2]
[313200544,1706929831972,-197.85195536,0.00022516,2]
[313200545,1706929831982,-197.85195536,0.00022537,2]
[313200546,1706929831992,-197.85195536,0.00022559,2]
[313200547,1706929832002,-155.62834575,0.00022568,2]
[313200548,1706929832013,-197.85195536,0.0002258,2]
[313200549,1706929832023,-390.95896029,0.00022585,2]
[313200550,1706929832033,-73.00982909,0.00022593,2]
[313200551,1706929832048,-594.5274152,0.00022593,2]
[313200552,1706929832060,-378.57275571,0.00022593,2]
[313200553,1706929832069,-150.0,0.00022593,2]
[313200554,1706929832078,-474.73059922,0.00022593,2]
[313200555,1706929832091,-53.57940078,0.00022593,2]
[313200556,1706929832100,-380.01854033,0.00022594,2]
[313200557,1706929832121,-321.16565532,0.00022594,2]
[313200558,1706929832133,-309.67607142,0.00022594,2]
[313200559,1706929832143,-10594.6630708,0.00022594,2]
[313200560,1706929832152,-1113.29,0.00022594,2]
[313200561,1706929832161,-499.99,0.00022594,2]
[313200562,1706929832171,-6296.62062338,0.00022595,2]
[313200563,1706929832180,-129791.74434938,0.00022595,2]
[313200564,1706929832190,-262.1798975,0.00022596,2]
[313200565,1706929832199,-500.0,0.00022596,2]
[313200566,1706929832208,-500.0,0.00022596,2]
[313200567,1706929832218,-500.0,0.00022596,2]
[313200568,1706929832227,-449.64684858,0.00022597,2]
[313200569,1706929832236,-500.0,0.00022597,2]
[313200570,1706929832246,-500.0,0.00022597,2]
[313200571,1706929832254,-427.39076853,0.00022597,2]
[313200572,1706929832263,-504.83249809,0.00022597,2]
[313200573,1706929832274,-500.0,0.00022597,2]
[313200575,1706929832284,-348.0936002,0.00022597,2]
[313200577,1706929832293,-500.0,0.00022597,2]
[313200579,1706929832302,-500.0,0.00022597,2]
[313200581,1706929832311,-614.23608978,0.00022597,2]
[313200583,1706929832322,-500.0,0.00022597,2]
[313200585,1706929832331,-500.0,0.00022597,2]
[313200587,1706929832340,-500.0,0.00022597,2]
[313200589,1706929832350,-150.99,0.00022597,2]
[313200591,1706929832358,-738.26,0.00022597,2]
[313200593,1706929832367,-500.0,0.00022597,2]
[313200595,1706929832377,-500.0,0.00022597,2]
[313200597,1706929832386,-500.0,0.00022597,2]
[313200599,1706929832395,-500.0,0.00022597,2]
[313200601,1706929832405,-500.0,0.00022597,2]
[313200603,1706929832414,-534.58366439,0.00022597,2]
[313200605,1706929832424,-720.35,0.00022597,2]
[313200607,1706929832433,-552.83544679,0.00022597,2]
[313200609,1706929832442,-625.55067027,0.00022597,2]
[313200611,1706929832451,-178.64735134,0.00022598,2]
[313200613,1706929832462,-4668.94773901,0.00022598,2]
[313200615,1706929832472,-200.0,0.00022599,2]
[313200617,1706929832481,-2000.0,0.00022599,2]
[313200619,1706929832490,-200.0,0.00022599,2]
[313200621,1706929832499,-500.0,0.00022599,2]
[313200622,1706929832508,-500.0,0.00022599,2]
[313200623,1706929832518,-281.48611437,0.00022599,2]
[313200624,1706929832526,-327.17952384,0.00022599,2]
[313200625,1706929832536,-500.0,0.00022599,2]
[313200626,1706929832545,-500.0,0.00022599,2]
[313200627,1706929832555,-687.47,0.00022599,2]
[313200628,1706929832564,-500.0,0.00022599,2]
[313200629,1706929832573,-640.83,0.00022599,2]
[313200630,1706929832582,-464.21334171,0.00022599,2]
[313200631,1706929832594,-35.78665829,0.00022599,2]
[313200632,1706929832603,-500.0,0.00022599,2]
[313200633,1706929832613,-500.0,0.00022599,2]
[313200634,1706929832622,-500.0,0.00022599,2]
[313200635,1706929832632,-500.0,0.00022599,2]
[313200636,1706929832641,-156.34442195,0.00022599,2]
[313200637,1706929832668,-343.65557805,0.00022599,2]
[313200638,1706929832678,-106.34442195,0.00022599,2]
[313200639,1706929832701,-315.43853365,0.00022599,2]
[313200640,1706929832710,-65.05337192,0.00022599,2]
[313200644,1706929837992,-354.33297941,0.00022599,2]
[313200645,1706929838004,-500.0,0.00022599,2]
[313200646,1706929838016,-228.91577688,0.00022599,2]
[313200647,1706929838031,-271.08422312,0.00022599,2]
[313200648,1706929838043,-648.96,0.00022599,2]
[313200649,1706929838054,-50.2582464,0.00022599,2]
[313200650,1706929838110,-449.7417536,0.00022599,2]
[313200651,1706929838122,-887.11,0.00022599,2]
[313200652,1706929838133,-1015.87,0.00022599,2]
[313200653,1706929838143,-308.64535893,0.00022599,2]
[313200654,1706929838154,-454.97423471,0.00022599,2]
[313200655,1706929838165,-32.24764535,0.00022599,2]
[313200656,1706929838179,-467.75235465,0.00022599,2]
[313200657,1706929838190,-500.0,0.00022599,2]
[313200658,1706929838200,-500.0,0.00022599,2]
[313200659,1706929838212,-500.0,0.00022599,2]
[313200660,1706929838222,-446.62433241,0.00022599,2]
[313200661,1706929838249,-53.37566759,0.00022599,2]
[313200662,1706929838260,-420.89909241,0.00022599,2]
[313200663,1706929838274,-79.10090759,0.00022599,2]
[313200664,1706929838285,-285.03731343,0.00022599,2]
[313200665,1706929838313,-214.96268657,0.00022599,2]
[313200666,1706929838324,-500.0,0.00022599,2]
[313200667,1706929838335,-647.10973402,0.00022599,2]
[313200668,1706929838346,-1193.58,0.00022599,2]
[313200669,1706929838357,-500.0,0.00022599,2]
[313200670,1706929838369,-500.0,0.00022599,2]
[313200671,1706929838380,-171.86605099,0.00022599,2]
[313200672,1706929838391,-500.0,0.00022599,2]
[313200673,1706929838402,-500.0,0.00022599,2]
[313200674,1706929838413,-458.18867253,0.00022599,2]
[313200675,1706929838425,-500.0,0.00022599,2]
[313200677,1706929838437,-644.60213707,0.00022599,2]
[313200679,1706929838448,-500.0,0.00022599,2]
[313200680,1706929838460,-500.0,0.00022599,2]
[313200681,1706929838471,-922.43,0.00022599,2]
[313200682,1706929838483,-358.54657457,0.00022599,2]
[313200684,1706929838496,-500.0,0.00022599,2]
[313200686,1706929838506,-500.0,0.00022599,2]
[313200688,1706929838515,-564.24877586,0.00022599,2]
[313200690,1706929838524,-591.67,0.00022599,2]
[313200711,1706929838698,-302.79953885,0.00022599,2]
[313200713,1706929838709,-622.3579346,0.00022599,2]
[313200715,1706929838718,-530.68,0.00022599,2]
[313200717,1706929838727,-431.92388783,0.00022599,2]
[313200719,1706929838737,-500.0,0.00022599,2]
[313200721,1706929838746,-276.91727822,0.00022599,2]
[313200723,1706929838755,-478.85472946,0.00022599,2]
[313200725,1706929838764,-170.18452094,0.00022599,2]
[313200727,1706929838773,-500.0,0.00022599,2]
[313200729,1706929838782,-591.4533396,0.00022599,2]
[313200731,1706929838791,-500.0,0.00022599,2]
[313200733,1706929838801,-500.0,0.00022599,2]
[313200735,1706929838809,-2266.28,0.00022599,2]
[313200737,1706929838819,-189.61859913,0.00022599,2]
[313200739,1706929838828,-500.0,0.00022599,2]
[313200742,1706929838837,-500.0,0.00022599,2]
[313200744,1706929838847,-500.0,0.00022599,2]
[313200746,1706929838856,-500.0,0.00022599,2]
[313200747,1706929838866,-871.48,0.00022599,2]
[313200750,1706929838875,-837.74,0.00022599,2]
[313200752,1706929838884,-500.0,0.00022599,2]
[313200753,1706929838898,-204.75515939,0.00022599,5]
[313200755,1706929838907,-1722.43,0.00022599,2]
[313200757,1706929838916,-500.0,0.00022599,2]
[313200759,1706929838925,-500.0,0.00022599,2]
[313200761,1706929838935,-500.0,0.00022599,2]
[313200764,1706929838945,-500.0,0.00022599,2]
[313200765,1706929838954,-20847.28,0.00022599,2]
[313200767,1706929838964,-500.0,0.00022599,2]
[313200769,1706929838975,-15923.67259224,0.000226,2]
[313200772,1706929838990,-9837.0004067,0.000226,2]
[313200775,1706929839006,-550.13251355,0.000226,2]
[313200777,1706929839016,-2065.26775631,0.000226,2]
[313200779,1706929839028,-59834.05106976,0.000226,2]
[313200940,1706929841194,-500.0,0.00022599,2]
[313200941,1706929841205,-116777.05774585,0.000226,2]
[313200942,1706929841217,-9496.0,0.000226,2]
[313200943,1706929841250,-743.0,0.000226,2]
[313200944,1706929841261,-3526.1503252,0.000226,2]
[313200945,1706929841272,-816.6477242,0.000226,2]
[313200946,1706929841283,-719.26763437,0.000226,2]
[313200947,1706929841360,-700.43927189,0.000226,2]
[313200948,1706929841371,-25749.26351173,0.000226,2]
[313200949,1706929841418,-5979.3229365,0.000226,2]
[313200950,1706929841475,-1140.83705825,0.000226,2]
[313200951,1706929841485,-197.85195536,0.00022601,2]
[313200952,1706929841500,-390.95896027,0.00022614,2]
[313200953,1706929841510,-197.85195536,0.00022622,2]
[313200954,1706929841520,-155.62834575,0.00022634,2]
[313200955,1706929841530,-390.95896027,0.00022642,2]
[313200956,1706929841539,-197.85195536,0.00022643,2]
[313200957,1706929841549,-2867.0,0.00022658,2]
[313200958,1706929841559,-1233.0,0.00022658,2]
[313200959,1706929841569,-211.383,0.00022658,2]
[313200960,1706929841579,-1121.932,0.00022658,2]
[313200961,1706929841589,-1137.182,0.00022658,2]
[313200962,1706929841599,-237.248,0.00022658,2]
[313200963,1706929841609,-1040.747,0.00022658,2]
[313200964,1706929841619,-428.0,0.00022658,2]
[313200965,1706929841629,-863.454,0.00022658,2]
[313200966,1706929841639,-1138.0,0.00022658,2]
[313200967,1706929841651,-320.0,0.00022658,2]
[313200968,1706929841663,-342.0,0.00022658,2]
[313200969,1706929841673,-197.85195536,0.00022665,2]
[313200970,1706929841683,-390.95896027,0.00022671,2]
[313200971,1706929841693,-160.88585138,0.00022674,2]
[313200972,1706929841703,-1141.39962084,0.00022683,2]
[313200973,1706929841717,-3373.04330082,0.00022683,2]
[313200974,1706929841726,-1002.22962689,0.00022684,2]
[313200975,1706929841746,-777.9999999,0.00022684,2]
[313200976,1706929841757,-395.06845634,0.00022684,2]
[313200977,1706929843949,-500.0,0.00022599,2]
[313200979,1706929843960,-977.20239095,0.00022684,2]
[313200980,1706929844165,-666.03301927,0.00022599,2]
[313200981,1706929844219,-1105.68238799,0.00022599,2]
[313200982,1706929844277,-21074.28322211,0.00022599,2]
[313200983,1706929844288,-396.77588872,0.00022599,2]
[313200984,1706929844330,-1699.7016505,0.00022599,2]
[313200985,1706929844387,-2856.85403804,0.00022599,2]
[313200999,1706929862474,286.17,0.00021808,2]
[313201000,1706929881677,712.0374,0.00022499,2]
[313201001,1706929945395,166.28,0.00021796,2]
[313201002,1706929962784,250.0,0.00021918,2]
[313201003,1706930011369,554.84770367,0.00022499,2]
[313201004,1706930026891,23900.0,0.00021715,2]
[313201005,1706930037648,855.65503959,0.00022497,2]
[313201006,1706930045838,210.80757545,0.00022499,2]
[313201007,1706930054340,473.47,0.00021722,2]
[313201008,1706930064885,312.14860703,0.00022499,2]
[313201009,1706930082145,150.58,0.000198,2]
[313201010,1706930082349,150.58,0.00022064,2]
[313201011,1706930105571,179.12,0.00021876,2]
[313201012,1706930145450,568.06,0.00021711,2]
[313201013,1706930210274,208.09907134,0.00022499,2]
[313201014,1706930214883,2705.0,0.00021715,2]
[313201015,1706930229482,1000.0,0.000225,2]
[313201016,1706930311449,10000.0,0.00021918,2]
[313201017,1706930355436,208.09907134,0.00022499,2]
[313201018,1706930404622,325.9747113,0.00022499,2]
[313201019,1706930482279,394.55,0.00021703,2]
[313201020,1706930490730,208.09907134,0.00022499,2]
[313201021,1706930493587,156.46783767,0.00022497,2]
[313201022,1706930496256,150.58,0.00019785,2]
[313201023,1706930496521,150.58,0.00022315,2]
[313201024,1706930610789,285.22787237,0.00022498,2]
[313201025,1706930740226,545.55,0.00021667,2]
[313201026,1706930816257,249.57438828,0.00022498,2]
[313201034,1706930903451,328.79,0.00021661,2]
[313201035,1706930909361,10000.0,0.00021918,2]
[313201042,1706931022058,218.37758978,0.00022498,2]
[313201073,1706931032231,-302.27937715,0.00022517,2]
[313201074,1706931032241,-209.0,0.00022518,2]
[313201075,1706931032250,-156.46783758,0.00022526,2]
[313201076,1706931032260,-156.46783758,0.00022555,2]
[313201077,1706931032273,-218.37758974,0.00022555,2]
[313201078,1706931032284,-156.46783758,0.00022583,2]
[313201079,1706931032293,-433.105,0.00022584,2]
[313201080,1706931032303,-260.63930692,0.00022585,2]
[313201081,1706931032312,-194.77885373,0.00022585,2]
[313201082,1706931032321,-160.88585138,0.00022588,2]
[313201083,1706931032331,-150.0,0.00022596,2]
[313201084,1706931032339,-129791.74434938,0.00022597,2]
[313201085,1706931032349,-500.0,0.00022597,2]
[313201086,1706931032359,-500.0,0.00022597,2]
[313201087,1706931032369,-596.71999718,0.00022597,2]
[313201088,1706931032378,-245.98192358,0.00022597,2]
[313201089,1706931032386,-500.0,0.00022597,2]
[313201090,1706931032396,-643.0121425,0.00022597,2]
[313201091,1706931032405,-500.0,0.00022597,2]
[313201092,1706931032414,-614.13,0.00022597,2]
[313201093,1706931032423,-500.0,0.00022597,2]
[313201094,1706931032432,-802.84,0.00022597,2]
[313201095,1706931032441,-500.0,0.00022597,2]
[313201096,1706931032451,-500.0,0.00022597,2]
[313201098,1706931032460,-500.0,0.00022597,2]
[313201100,1706931032469,-500.0,0.00022597,2]
[313201102,1706931032478,-500.0,0.00022597,2]
[313201104,1706931032487,-500.0,0.00022597,2]
[313201105,1706931032498,-500.0,0.00022597,2]
[313201106,1706931032507,-500.0,0.00022597,2]
[313201108,1706931032516,-500.0,0.00022597,2]
[313201110,1706931032525,-631.66943496,0.00022597,2]
[313201112,1706931032535,-18031.18681931,0.00022597,2]
[313201113,1706931032547,-1947.45318069,0.00022597,2]
[313201114,1706931032556,-539.25,0.00022597,2]
[313201115,1706931032565,-500.0,0.00022597,2]
[313201116,1706931032574,-500.0,0.00022597,2]
[313201117,1706931032584,-500.0,0.00022597,2]
[313201118,1706931032594,-500.0,0.00022597,2]
[313201119,1706931032605,-401.98470522,0.00022597,2]
[313201120,1706931032615,-500.0,0.00022597,2]
[313201121,1706931032624,-500.0,0.00022597,2]
[313201122,1706931032633,-850.15,0.00022597,2]
[313201123,1706931032642,-973.54,0.00022597,2]
[313201124,1706931032652,-500.0,0.00022597,2]
[313201125,1706931032661,-500.0,0.00022597,2]
[313201126,1706931032671,-500.0,0.00022597,2]
[313201127,1706931032680,-1143.85,0.00022597,2]
[313201128,1706931032689,-500.0,0.00022597,2]
[313201129,1706931032699,-500.0,0.00022597,2]
[313201130,1706931032708,-500.0,0.00022597,2]
[313201131,1706931032718,-500.0,0.00022597,2]
[313201132,1706931032727,-500.0,0.00022597,2]
[313201133,1706931032736,-500.0,0.00022597,2]
[313201134,1706931032746,-500.0,0.00022597,2]
[313201135,1706931032755,-500.0,0.00022597,2]
[313201136,1706931032765,-500.0,0.00022597,2]
[313201137,1706931032775,-500.0,0.00022597,2]
[313201138,1706931032785,-500.0,0.00022597,2]
[313201139,1706931032795,-500.0,0.00022597,2]
[313201140,1706931032805,-500.0,0.00022597,2]
[313201141,1706931032815,-595.68746709,0.00022597,2]
[313201142,1706931032824,-500.0,0.00022597,2]
[313201143,1706931032834,-500.0,0.00022597,2]
[313201144,1706931032843,-500.0,0.00022597,2]
[313201145,1706931032852,-500.0,0.00022597,2]
[313201146,1706931032861,-567.01,0.00022597,2]
[313201147,1706931032870,-500.0,0.00022597,2]
[313201148,1706931032879,-500.0,0.00022597,2]
[313201149,1706931032888,-508.57,0.00022597,2]
[313201150,1706931032898,-500.0,0.00022597,2]
[313201151,1706931032907,-835.17,0.00022597,2]
[313201152,1706931032917,-500.0,0.00022597,2]
[313201153,1706931032926,-500.0,0.00022597,2]
[313201154,1706931032935,-2171.85,0.00022597,2]
[313201155,1706931032944,-500.0,0.00022597,2]
[313201156,1706931032954,-707.5,0.00022597,2]
[313201157,1706931032964,-207.09612759,0.00022597,2]
[313201158,1706931032974,-500.0,0.00022597,2]
[313201159,1706931032983,-500.0,0.00022597,2]